fUST/lending_fUST_20240706
["ID","MTS","AMOUNT","RATE_DAILY","PERIOD"]
[331317195,1720214860418,-484.81088406,0.00049315,120]
[331317196,1720214860440,-946.88,0.00049315,120]
[331317197,1720214860460,-500.0,0.00049315,120]
[331317198,1720214860485,-500.0,0.00049315,120]
[331317199,1720214860507,-500.0,0.00049315,120]
[331317200,1720214860529,-500.0,0.00049315,120]
[331317201,1720214860552,-644.47,0.00049315,120]
[331317202,1720214860574,-500.0,0.00049315,120]
[331317203,1720214860598,-500.0,0.00049315,120]
[331317204,1720214860625,-500.0,0.00049315,120]
[331317205,1720214860647,-500.0,0.00049315,120]
[331317206,1720214860668,-275.65879197,0.00049315,120]
[331317207,1720214860691,-500.0,0.00049315,120]
[331317208,1720214860716,-500.0,0.00049315,120]
[331317209,1720214860737,-500.0,0.00049315,120]
[331317210,1720214860759,-500.0,0.00049315,120]
[331317211,1720214860782,-500.0,0.00049315,120]
[331317212,1720214860803,-500.0,0.00049315,120]
[331317213,1720214860823,-500.0,0.00049315,120]
[331317214,1720214860845,-500.0,0.00049315,120]
[331317215,1720214860867,-500.0,0.00049315,30]
[331317216,1720214860888,-354.8589622,0.00049315,120]
[331317217,1720214860910,-1519.6,0.00049315,60]
[331317218,1720214860931,-1000.0,0.00049315,120]
[331317219,1720214860952,-500.0,0.00049315,120]
[331317220,1720214860974,-500.0,0.00049315,120]
[331317221,1720214860996,-901.52,0.00049315,120]
[331317222,1720214861017,-500.0,0.00049315,120]
[331317223,1720214861039,-500.0,0.00049315,120]
[331317224,1720214861060,-609.91944635,0.00049315,120]
[331317225,1720214861082,-500.0,0.00049315,120]
[331317226,1720214861102,-500.0,0.00049315,120]
[331317227,1720214861123,-500.0,0.00049315,120]
[331317228,1720214861145,-867.23,0.00049315,120]
[331317229,1720214861165,-500.0,0.00049315,120]
[331317230,1720214861187,-500.0,0.00049315,120]
[331317231,1720214861208,-893.55,0.00049315,120]
[331317232,1720214861230,-500.0,0.00049315,120]
[331317233,1720214861250,-630.41187616,0.00049315,120]
[331317234,1720214861271,-500.0,0.00049315,2]
[331317235,1720214861292,-500.0,0.00049315,120]
[331317236,1720214861313,-500.0,0.00049315,120]
[331317237,1720214861335,-6338.56,0.00049315,120]
[331317238,1720214861356,-500.0,0.00049315,20]
[331317239,1720214861379,-500.0,0.00049315,120]
[331317240,1720214861401,-500.0,0.00049315,120]
[331317241,1720214861423,-316.30495166,0.00049315,120]
[331317242,1720214861445,-500.0,0.00049315,120]
[331317243,1720214861466,-500.0,0.00049315,120]
[331317244,1720214861488,-570.87,0.00049315,120]
[331317245,1720214861510,-500.0,0.00049315,120]
[331317246,1720214861531,-207.46,0.00049315,7]
[331317247,1720214861562,-172.79929326,0.00049315,120]
[331317248,1720214861583,-500.0,0.00049315,120]
[331317249,1720214861605,-500.0,0.00049315,120]
[331317250,1720214861627,-500.0,0.00049315,120]
[331317251,1720214861649,-500.0,0.00049315,120]
[331317252,1720214861669,-655.46,0.00049315,120]
[331317253,1720214861691,-500.0,0.00049315,120]
[331317254,1720214861717,-3059.86,0.00049315,120]
[331317255,1720214861739,-500.0,0.00049315,120]
[331317256,1720214861759,-659.1,0.00049315,120]
[331317257,1720214861783,-500.0,0.00049315,120]
[331317258,1720214861804,-690.53,0.00049315,120]
[331317259,1720214861824,-500.0,0.00049315,120]
[331317260,1720214861847,-500.0,0.00049315,120]
[331317261,1720214861869,-502.5,0.00049315,120]
[331317262,1720214861891,-500.0,0.00049315,120]
[331317263,1720214861913,-500.0,0.00049315,120]
[331317264,1720214861935,-434.17790475,0.00049315,120]
[331317265,1720214861956,-500.0,0.00049315,120]
[331317266,1720214861977,-500.0,0.00049315,120]
[331317267,1720214861998,-500.0,0.00049315,120]
[331317268,1720214862019,-500.0,0.00049315,120]
[331317269,1720214862039,-500.0,0.00049315,120]
[331317270,1720214862060,-500.0,0.00049315,120]
[331317271,1720214862080,-1423.3,0.00049315,120]
[331317272,1720214862100,-500.0,0.00049315,120]
[331317273,1720214862121,-500.0,0.00049315,120]
[331317274,1720214862142,-500.0,0.00049315,120]
[331317275,1720214862176,-500.0,0.00049315,120]
[331317276,1720214862197,-500.0,0.00049315,120]
[331317277,1720214862219,-1231.8,0.00049315,120]
[331317278,1720214862241,-500.0,0.00049315,120]
[331317279,1720214862262,-500.0,0.00049315,120]
[331317280,1720214862282,-500.0,0.00049315,120]
[331317281,1720214862303,-323.43936597,0.00049315,120]
[331317282,1720214862323,-606.24,0.00049315,120]
[331317283,1720214862343,-500.0,0.00049315,120]
[331317284,1720214862364,-500.0,0.00049315,120]
[331317285,1720214862384,-500.0,0.00049315,120]
[331317286,1720214862404,-500.0,0.00049315,120]
[331317287,1720214862425,-500.0,0.00049315,120]
[331317288,1720214862445,-500.0,0.00049315,120]
[331317289,1720214862467,-500.0,0.00049315,120]
[331317290,1720214862489,-517.20493663,0.00049315,120]
[331317291,1720214862510,-1411.03,0.00049315,120]
[331317292,1720214862530,-500.0,0.00049315,120]
[331317293,1720214862552,-452.70995429,0.00049315,120]
[331317294,1720214862573,-500.0,0.00049315,120]
[331317295,1720214862594,-500.0,0.00049315,120]
[331317296,1720214862617,-576.8,0.00049315,120]
[331317297,1720214862638,-500.0,0.00049315,120]
[331317298,1720214862662,-500.0,0.00049315,120]
[331317299,1720214862682,-500.0,0.00049315,120]
[331317300,1720214862704,-279.05261971,0.00049315,120]
[331317356,1720215033531,-162.68460589,0.00045691,30]
[331317357,1720215033541,-139.31539411,0.000469,120]
[331317358,1720215033553,-441.04596982,0.000469,120]
[331317359,1720215033565,-975.75,0.000469,120]
[331317360,1720215033576,-2458.70140164,0.000469,120]
[331317361,1720215033588,-2637.25044214,0.000469,120]
[331317362,1720215033602,-1861.49410288,0.000469,120]
[331317363,1720215033614,-1437.5294023,0.000469,120]
[331317364,1720215033625,-3337.05821418,0.000469,120]
[331317372,1720215040125,-1466.99330367,0.000469,120]
[331317374,1720215040138,-2670.01068533,0.000469,120]
[331317376,1720215040152,-5385.07108393,0.000469,120]
[331317378,1720215040162,-1095.38715612,0.00049215,2]
[331317380,1720215040173,-508.22,0.00049305,30]
[331317382,1720215040183,-1312.78,0.00049305,3]
[331317383,1720215040194,-65507.1642326,0.00049305,6]
[331317385,1720215040205,-220.94738029,0.00049315,120]
[331317387,1720215040215,-500.0,0.00049315,120]
[331317389,1720215040226,-500.0,0.00049315,3]
[331317391,1720215040237,-500.0,0.00049315,120]
[331317393,1720215040249,-500.0,0.00049315,120]
[331317395,1720215040259,-500.0,0.00049315,120]
[331317397,1720215040270,-500.0,0.00049315,120]
[331317399,1720215040281,-500.0,0.00049315,120]
[331317401,1720215040291,-500.0,0.00049315,120]
[331317403,1720215040302,-500.0,0.00049315,2]
[331317405,1720215040313,-500.0,0.00049315,120]
[331317407,1720215040325,-500.0,0.00049315,120]
[331317408,1720215040335,-500.0,0.00049315,120]
[331317411,1720215040347,-500.0,0.00049315,120]
[331317413,1720215040360,-500.0,0.00049315,120]
[331317415,1720215040370,-1350.2,0.00049315,120]
[331317417,1720215040380,-500.0,0.00049315,120]
[331317418,1720215040391,-500.0,0.00049315,120]
[331317420,1720215040401,-500.0,0.00049315,120]
[331317422,1720215040411,-500.0,0.00049315,120]
[331317424,1720215040422,-500.0,0.00049315,120]
[331317426,1720215040433,-500.0,0.00049315,120]
[331317428,1720215040444,-500.0,0.00049315,120]
[331317430,1720215040454,-500.0,0.00049315,120]
[331317432,1720215040465,-500.0,0.00049315,120]
[331317434,1720215040475,-500.0,0.00049315,120]
[331317436,1720215040486,-500.0,0.00049315,120]
[331317438,1720215040496,-500.0,0.00049315,120]
[331317440,1720215040506,-500.0,0.00049315,120]
[331317442,1720215040516,-1434.1,0.00049315,120]
[331317443,1720215040526,-1448.28,0.00049315,120]
[331317444,1720215040536,-500.14879932,0.00049315,120]
[331317445,1720215040545,-564.27,0.00049315,120]
[331317446,1720215040555,-500.0,0.00049315,120]
[331317447,1720215040565,-500.0,0.00049315,120]
[331317448,1720215040575,-500.0,0.00049315,120]
[331317449,1720215040584,-598.09,0.00049315,120]
[331317450,1720215040594,-500.0,0.00049315,120]
[331317451,1720215040604,-500.0,0.00049315,120]
[331317452,1720215040617,-500.0,0.00049315,120]
[331317453,1720215040627,-516.17,0.00049315,120]
[331317454,1720215040638,-500.0,0.00049315,120]
[331317455,1720215040648,-500.0,0.00049315,120]
[331317456,1720215040660,-500.0,0.00049315,3]
[331317457,1720215040671,-504.06477973,0.00049315,120]
[331317458,1720215040680,-500.0,0.00049315,120]
[331317459,1720215040690,-500.0,0.00049315,120]
[331317460,1720215040700,-500.0,0.00049315,120]
[331317461,1720215040711,-578.89,0.00049315,120]
[331317462,1720215040720,-1608.83,0.00049315,120]
[331317463,1720215040730,-678.15,0.00049315,120]
[331317464,1720215040741,-500.0,0.00049315,120]
[331317465,1720215040750,-500.0,0.00049315,120]
[331317466,1720215040761,-500.0,0.00049315,120]
[331317467,1720215040770,-500.0,0.00049315,120]
[331317468,1720215040781,-500.0,0.00049315,120]
[331317469,1720215040792,-500.0,0.00049315,120]
[331317470,1720215040802,-500.0,0.00049315,120]
[331317471,1720215040813,-500.0,0.00049315,120]
[331317472,1720215040823,-500.0,0.00049315,120]
[331317473,1720215040832,-1112.68,0.00049315,120]
[331317474,1720215040843,-215.20754186,0.00049315,120]
[331317475,1720215040853,-753.56,0.00049315,120]
[331317476,1720215040867,-628.14,0.00049315,120]
[331317477,1720215040877,-500.0,0.00049315,120]
[331317478,1720215040886,-155.45897954,0.00049315,120]
[331317479,1720215040900,-863.93,0.00049315,120]
[331317480,1720215040910,-500.0,0.00049315,120]
[331317481,1720215040920,-500.0,0.00049315,120]
[331317482,1720215040930,-1037.67,0.00049315,120]
[331317483,1720215040939,-720.18,0.00049315,120]
[331317484,1720215040949,-500.0,0.00049315,120]
[331317485,1720215040959,-500.0,0.00049315,120]
[331317486,1720215040968,-500.0,0.00049315,120]
[331317487,1720215040978,-500.0,0.00049315,120]
[331317488,1720215040988,-1563.64,0.00049315,120]
[331317489,1720215040997,-248.76574414,0.00049315,120]
[331317490,1720215041007,-11759.2,0.00049315,120]
[331317491,1720215041016,-500.0,0.00049315,120]
[331317492,1720215041025,-792.09,0.00049315,120]
[331317493,1720215041035,-554.87,0.00049315,120]
[331317494,1720215041044,-500.0,0.00049315,120]
[331317495,1720215041053,-500.0,0.00049315,120]
[331317496,1720215041063,-500.0,0.00049315,120]
[331317497,1720215041072,-500.0,0.00049315,120]
[331317498,1720215041081,-500.0,0.00049315,120]
[331317499,1720215041090,-500.0,0.00049315,120]
[331317500,1720215041099,-500.0,0.00049315,120]
[331317501,1720215041110,-500.0,0.00049315,120]
[331317502,1720215041119,-500.0,0.00049315,120]
[331317503,1720215041128,-500.0,0.00049315,120]
[331317504,1720215041137,-500.0,0.00049315,120]
[331317505,1720215041146,-502.33949866,0.00049315,120]
[331317506,1720215041156,-500.0,0.00049315,120]
[331317507,1720215041166,-209.60809394,0.00049315,120]
[331317508,1720215041175,-1948.1,0.00049315,120]
[331317509,1720215041184,-954.94,0.00049315,120]
[331317510,1720215041194,-500.0,0.00049315,120]
[331317511,1720215041203,-510.95,0.00049315,120]
[331317512,1720215041213,-500.0,0.00049315,120]
[331317513,1720215041222,-500.0,0.00049315,120]
[331317514,1720215041232,-500.0,0.00049315,120]
[331317515,1720215041241,-1060.51,0.00049315,120]
[331317516,1720215041251,-500.0,0.00049315,120]
[331317517,1720215041260,-204.82506616,0.00049315,120]
[331317518,1720215041269,-500.0,0.00049315,120]
[331317519,1720215041279,-530.6,0.00049315,120]
[331317520,1720215041288,-500.0,0.00049315,120]
[331317521,1720215041298,-500.0,0.00049315,120]
[331317522,1720215041308,-500.0,0.00049315,120]
[331317523,1720215041317,-500.0,0.00049315,120]
[331317524,1720215041326,-500.0,0.00049315,120]
[331317525,1720215041336,-673.96,0.00049315,120]
[331317526,1720215041345,-501.74471623,0.00049315,120]
[331317527,1720215041354,-500.53430089,0.00049315,120]
[331317528,1720215041366,-673.65,0.00049315,120]
[331317529,1720215041375,-500.0,0.00049315,120]
[331317530,1720215041384,-1454.09,0.00049315,120]
[331317531,1720215041393,-501.74566429,0.00049315,120]
[331317532,1720215041403,-500.0,0.00049315,120]
[331317533,1720215041412,-536.79233008,0.00049315,120]
[331317534,1720215041421,-500.0,0.00049315,120]
[331317536,1720215041431,-999.0,0.00049315,120]
[331317537,1720215041441,-210.98216367,0.00049315,7]
[331317538,1720215041451,-500.0,0.00049315,120]
[331317539,1720215041462,-600.99250218,0.00049315,120]
[331317540,1720215041472,-1326.49,0.00049315,120]
[331317541,1720215041482,-500.0,0.00049315,120]
[331317542,1720215041491,-500.0,0.00049315,120]
[331317543,1720215041501,-500.0,0.00049315,120]
[331317544,1720215041511,-2448.78,0.00049315,120]
[331317545,1720215041520,-500.0,0.00049315,120]
[331317546,1720215041529,-500.0,0.00049315,120]
[331317547,1720215041539,-500.0,0.00049315,120]
[331317548,1720215041548,-671.65,0.00049315,120]
[331317550,1720215041557,-500.0,0.00049315,120]
[331317552,1720215041567,-1235.77,0.00049315,120]
[331317554,1720215041576,-500.0,0.00049315,120]
[331317556,1720215041585,-500.0,0.00049315,120]
[331317558,1720215041594,-500.0,0.00049315,120]
[331317560,1720215041603,-500.0,0.00049315,120]
[331317562,1720215041614,-500.0,0.00049315,60]
[331317564,1720215041623,-500.0,0.00049315,120]
[331317566,1720215041632,-500.0,0.00049315,120]
[331317568,1720215041641,-500.0,0.00049315,120]
[331317570,1720215041651,-200.81941855,0.00049315,120]
[331317572,1720215041662,-500.0,0.00049315,120]
[331317574,1720215041672,-1511.05,0.00049315,120]
[331317576,1720215041680,-500.0,0.00049315,120]
[331317578,1720215041689,-2429.48,0.00049315,21]
[331317579,1720215041698,-500.0,0.00049315,120]
[331317581,1720215041707,-522.50217358,0.00049315,120]
[331317583,1720215041717,-500.0,0.00049315,120]
[331317585,1720215041726,-1530.72,0.00049315,120]
[331317587,1720215041736,-504.18,0.00049315,120]
[331317589,1720215041747,-500.0,0.00049315,120]
[331317591,1720215041756,-500.0,0.00049315,120]
[331317593,1720215041766,-856.31,0.00049315,120]
[331317595,1720215041775,-500.0,0.00049315,120]
[331317597,1720215041786,-1205.18,0.00049315,120]
[331317599,1720215041795,-500.0,0.00049315,120]
[331317601,1720215041808,-226.95995148,0.00049315,120]
[331317603,1720215041818,-661.75,0.00049315,120]
[331317605,1720215041828,-500.0,0.00049315,120]
[331317607,1720215041838,-500.0,0.00049315,120]
[331317609,1720215041847,-500.0,0.00049315,120]
[331317611,1720215041857,-500.0,0.00049315,120]
[331317613,1720215041867,-500.0,0.00049315,120]
[331317615,1720215041876,-500.0,0.00049315,120]
[331317617,1720215041885,-6223.5,0.00049315,120]
[331317619,1720215041894,-6091.75,0.00049315,120]
[331317621,1720215041903,-1652.66642689,0.00049315,120]
[331317624,1720215041921,-1268.09129459,0.00049315,120]
[331317626,1720215041932,-1092.36227852,0.00049315,120]
[331317628,1720215041942,-515.96953941,0.00049315,120]
[331317630,1720215041952,-500.0,0.00049315,120]
[331317632,1720215041961,-500.0,0.00049315,120]
[331317634,1720215041970,-500.0,0.00049315,120]
[331317636,1720215041980,-500.0,0.00049315,120]
[331317638,1720215041989,-1363.99,0.00049315,120]
[331317640,1720215041999,-500.0,0.00049315,120]
[331317658,1720215042168,-500.0,0.00049315,120]
[331317660,1720215042179,-7277.31,0.00049315,120]
[331317662,1720215042189,-513.20602938,0.00049315,120]
[331317665,1720215042204,-500.0,0.00049315,120]
[331317666,1720215042214,-4496.17,0.00049315,120]
[331317668,1720215042225,-778.62,0.00049315,120]
[331317670,1720215042235,-500.0,0.00049315,120]
[331317672,1720215042245,-798.94,0.00049315,120]
[331317674,1720215042255,-500.0,0.00049315,120]
[331317676,1720215042266,-500.0,0.00049315,120]
[331317679,1720215042278,-500.0,0.00049315,120]
[331317680,1720215042288,-500.0,0.00049315,120]
[331317683,1720215042297,-1182.71,0.00049315,120]
[331317685,1720215042308,-1352.24,0.00049315,120]
[331317686,1720215042318,-506.42,0.00049315,120]
[331317688,1720215042328,-500.0,0.00049315,120]
[331317690,1720215042339,-500.0,0.00049315,120]
[331317692,1720215042349,-923.51,0.00049315,120]
[331317693,1720215042360,-500.0,0.00049315,120]
[331317694,1720215042370,-500.0,0.00049315,120]
[331317695,1720215042379,-500.0,0.00049315,120]
[331317696,1720215042390,-500.0,0.00049315,120]
[331317697,1720215042399,-1243.86,0.00049315,120]
[331317698,1720215042409,-500.0,0.00049315,120]
[331317699,1720215042418,-500.0,0.00049315,120]
[331317700,1720215042427,-500.0,0.00049315,120]
[331317701,1720215042436,-500.0,0.00049315,120]
[331317702,1720215042446,-454.39156641,0.00049315,120]
[331317705,1720215043899,-45.60843359,0.00049315,120]
[331317706,1720215043909,-595.22,0.00049315,120]
[331317707,1720215043918,-500.0,0.00049315,120]
[331317708,1720215043927,-500.0,0.00049315,120]
[331317709,1720215043949,-500.0,0.00049315,120]
[331317710,1720215043959,-2856.43,0.00049315,120]
[331317711,1720215043969,-500.0,0.00049315,120]
[331317712,1720215043978,-549.19,0.00049315,120]
[331317713,1720215043988,-500.0,0.00049315,120]
[331317714,1720215043998,-622.08,0.00049315,120]
[331317715,1720215044007,-2882.3,0.00049315,120]
[331317716,1720215044017,-500.0,0.00049315,120]
[331317717,1720215044026,-500.0,0.00049315,120]
[331317718,1720215044035,-1194.26,0.00049315,120]
[331317719,1720215044045,-503.32042959,0.00049315,120]
[331317720,1720215044055,-822.25,0.00049315,120]
[331317721,1720215044065,-500.0,0.00049315,120]
[331317722,1720215044075,-500.0,0.00049315,120]
[331317723,1720215044085,-2120.23,0.00049315,120]
[331317724,1720215044094,-500.0,0.00049315,120]
[331317725,1720215044104,-3042.94,0.00049315,120]
[331317726,1720215044118,-500.0,0.00049315,120]
[331317727,1720215044127,-500.0,0.00049315,120]
[331317728,1720215044136,-500.0,0.00049315,120]
[331317729,1720215044145,-500.0,0.00049315,120]
[331317730,1720215044158,-500.0,0.00049315,120]
[331317731,1720215044168,-500.0,0.00049315,120]
[331317732,1720215044178,-1107.4197598,0.00049315,120]
[331317751,1720215046981,-73.0602402,0.00049315,120]
[331317752,1720215046990,-667.81,0.00049315,120]
[331317753,1720215046999,-500.0,0.00049315,120]
[331317754,1720215047008,-1427.16,0.00049315,120]
[331317755,1720215047017,-500.0,0.00049315,120]
[331317756,1720215047026,-617.62,0.00049315,120]
[331317757,1720215047036,-500.0,0.00049315,120]
[331317758,1720215047045,-931.26,0.00049315,120]
[331317759,1720215047054,-500.0,0.00049315,120]
[331317760,1720215047063,-500.0,0.00049315,120]
[331317761,1720215047072,-1076.43,0.00049315,120]
[331317762,1720215047081,-500.0,0.00049315,120]
[331317763,1720215047091,-500.0,0.00049315,120]
[331317764,1720215047100,-500.0,0.00049315,120]
[331317765,1720215047111,-500.0,0.00049315,120]
[331317766,1720215047121,-304.18234676,0.00049315,120]
[331317767,1720215047130,-500.0,0.00049315,120]
[331317768,1720215047142,-1662.47,0.00049315,120]
[331317769,1720215047152,-500.0,0.00049315,120]
[331317770,1720215047161,-500.0,0.00049315,120]
[331317771,1720215047171,-500.0,0.00049315,120]
[331317772,1720215047181,-1181.48,0.00049315,120]
[331317773,1720215047190,-729.5,0.00049315,120]
[331317774,1720215047199,-500.0,0.00049315,120]
[331317775,1720215047208,-500.0,0.00049315,120]
[331317776,1720215047217,-522.22,0.00049315,120]
[331317777,1720215047235,-500.0,0.00049315,120]
[331317778,1720215047252,-500.0,0.00049315,120]
[331317779,1720215047261,-500.0,0.00049315,120]
[331317780,1720215047271,-597.25,0.00049315,120]
[331317781,1720215047280,-500.0,0.00049315,120]
[331317782,1720215047289,-500.0,0.00049315,120]
[331317783,1720215047299,-500.0,0.00049315,120]
[331317784,1720215047308,-500.0,0.00049315,120]
[331317785,1720215047318,-999.0,0.00049315,120]
[331317786,1720215047327,-500.0,0.00049315,120]
[331317787,1720215047336,-336.28465008,0.00049386,2]
[331317788,1720215047443,-759.10250601,0.00049386,2]
[331317789,1720215047452,-8.76045821,0.00049558,2]
[331317790,1720215047465,-1086.62669788,0.00049558,2]
[331317791,1720215047474,-999.0,0.00049589,120]
[331317792,1720215047484,-1095.38715609,0.00049729,2]
[331317793,1720215047494,-169.4,0.00049773,60]
[331317794,1720215047504,-373.0,0.000498,27]
[331317795,1720215047514,-2049.68,0.00049843,3]
[331317796,1720215047523,-506.10091118,0.00049852,31]
[331317797,1720215047532,-500.0,0.00049852,120]
[331317798,1720215047541,-469.15160687,0.00049852,120]
[331317799,1720215047550,-500.0,0.00049852,120]
[331317800,1720215047559,-500.0,0.00049852,120]
[331317801,1720215047568,-500.0,0.00049852,120]
[331317802,1720215047576,-500.0,0.00049852,120]
[331317803,1720215047586,-500.0,0.00049852,120]
[331317804,1720215047595,-500.0,0.00049852,120]
[331317805,1720215047603,-350.0,0.00049852,120]
[331317806,1720215047631,-216.53074989,0.00049852,120]
[331317807,1720215047659,-500.0,0.00049852,120]
[331317808,1720215047680,-500.0,0.00049852,120]
[331317809,1720215047689,-500.0,0.00049852,120]
[331317810,1720215047699,-500.0,0.00049852,120]
[331317811,1720215047709,-500.0,0.00049852,120]
[331317812,1720215047718,-254.23496613,0.00049852,120]
[331317813,1720215048044,-245.76503387,0.00049852,120]
[331317814,1720215048054,-151.0,0.00049853,14]
[331317815,1720215048063,-13933.23481536,0.00049853,6]
[331317829,1720215049184,-500.0,0.00049315,120]
[331317830,1720215049193,-95.5,0.00049853,6]
[331317835,1720215049267,-19954.19268,0.00049853,6]
[331317837,1720215049279,-572.27563167,0.00049853,6]
[331317839,1720215049289,-620.33566468,0.00049853,6]
[331317842,1720215049301,-47490.95399125,0.00049853,6]
[331317844,1720215049312,-7761.42363677,0.00049853,6]
[331317846,1720215049323,-526.08072875,0.00049853,6]
[331317917,1720215050175,-72813.91343352,0.00049853,6]
[331317918,1720215050186,-500.0,0.00049863,120]
[331317919,1720215050195,-500.0,0.00049863,120]
[331317920,1720215050204,-500.0,0.00049863,120]
[331317921,1720215050214,-523.41230049,0.00049863,120]
[331317922,1720215050222,-500.0,0.00049863,120]
[331317923,1720215050232,-500.0,0.00049863,120]
[331317924,1720215050241,-509.95246478,0.00049863,120]
[331317925,1720215050250,-501.02032071,0.00049863,120]
[331317926,1720215050259,-500.0,0.00049863,120]
[331317927,1720215050268,-500.0,0.00049863,120]
[331317928,1720215050277,-500.0,0.00049863,120]
[331317929,1720215050286,-500.0,0.00049863,120]
[331317930,1720215050295,-500.0,0.00049863,120]
[331317931,1720215050304,-500.0,0.00049863,30]
[331317932,1720215050313,-1519.6,0.00049863,60]
[331317934,1720215050323,-670.58736382,0.00049863,120]
[331317935,1720215050331,-500.0,0.00049863,120]
[331317936,1720215050340,-901.52,0.00049863,120]
[331317938,1720215050350,-500.0,0.00049863,120]
[331317940,1720215050359,-500.0,0.00049863,120]
[331317942,1720215050371,-500.0,0.00049863,120]
[331317944,1720215050383,-500.0,0.00049863,120]
[331317945,1720215050392,-867.23,0.00049863,120]
[331317946,1720215050401,-500.0,0.00049863,120]
[331317947,1720215050411,-557.72328555,0.00049863,120]
[331317948,1720215050420,-500.0,0.00049863,2]
[331317949,1720215050429,-500.0,0.00049863,120]
[331317950,1720215050438,-500.0,0.00049863,120]
[331317951,1720215050458,-1427.8370056,0.00049863,120]
[331317952,1720215095618,160.059393,0.00021096,2]
[331317953,1720215097238,160.059393,0.00030011,2]
[331317954,1720215097665,160.059393,0.00038925,2]
[331317955,1720215123385,375.26887823,0.00043834,7]
[331317967,1720216025947,-160.059393,0.00021096,2]
[331317968,1720216026326,-160.059393,0.00033973,2]
[331317969,1720216026709,-166.666666,0.0004039,2]
[331317970,1720216027490,-166.666666,0.00041492,2]
[331317971,1720216028216,-166.666666,0.00042593,2]
[331317972,1720216028570,-3995.73627618,0.00042999,2]
[331317973,1720216033853,-166.666666,0.00043694,2]
[331317974,1720216034261,-682.0,0.00043726,30]
[331317975,1720216034671,-154.72922386,0.00043834,4]
[331317976,1720216035106,-166.666666,0.00044795,2]
[331317977,1720216035864,-169.4,0.0004534,31]
[331317978,1720216036564,-152.0,0.0004534,31]
[331317979,1720216037136,-166.666666,0.00045896,2]
[331317980,1720216037564,-2500.0,0.00046,7]
[331317981,1720216037597,-682.0,0.00046028,30]
[331317982,1720216037631,-503.82146925,0.00046574,120]
[331317983,1720216037669,-160.059393,0.00046849,2]
[331317984,1720216037720,-18956.23654345,0.000469,120]
[331317985,1720216146656,-15477.38446686,0.00043287,2]
[331318009,1720216237095,-317.6820451,0.00031513,2]
[331318010,1720216237105,-283.45664934,0.00031513,2]
[331318011,1720216237114,-82.39260389,0.00031513,2]
[331318030,1720216239330,-70.65827533,0.00031513,2]
[331318031,1720216239340,-511.29611507,0.00031513,2]
[331318032,1720216239350,-499.999999,0.00031513,2]
[331318033,1720216239359,-221.53556508,0.00031513,2]
[331318034,1720216239369,-433.70222597,0.00031513,2]
[331318035,1720216239379,-22810.22,0.000469,120]
[331318036,1720216239391,-7094.13638542,0.00047,30]
[331318037,1720216239401,-3000.0,0.00047,2]
[331318038,1720216239411,-150.0,0.00047454,5]
[331318039,1720216239420,-682.0,0.0004845,30]
[331318040,1720216239430,-227.22104883,0.00049214,2]
[331318041,1720216239440,-1708.07,0.00049295,3]